Cogmind - Beta 10.2 @@@ ROGUE MODE // 2020.12.28 @ 00:42:19 Player: aperiodic Result: Destroyed by as-11478 with Assembled Rifle Performance ------------- Evolutions (0) 0 Regions Visited (2) 400 Robots Destroyed (22) 110 Value Destroyed (393) 393 Prototype IDs (4) 80 Alien Tech Used (0) 0 Bonus (0) 0 TOTAL SCORE: 983 Bonus ------- None Cogmind --------- Core Integrity 0/250 Matter 166/300 Energy 89/100 System Corruption 5% Temperature Cool (0) Movement Core (600) Ox11 Location -10/Mines Parts ------- > --- POWER (1) -------- (None) > --- PROPULSION (2) --- (None) > --- UTILITY (2) ------ Large Storage Unit Large Storage Unit > --- WEAPON (2) ------- Light Assault Rifle Light Assault Rifle > --- INVENTORY (16) --- Wheel Cooling System Medium Storage Unit Salvage Targeting Computer Light Armor Plating Hacking Suite Light Assault Rifle Grenade Launcher Mining Laser Peak State ------------ > --- POWER ------------ Light Nuclear Core > --- PROPULSION ------- Light Treads Light Treads > --- UTILITY ---------- Large Storage Unit Large Storage Unit > --- WEAPON ----------- EM Pulse Gun Light Assault Rifle > --- INVENTORY -------- Wheel Cooling System Medium Storage Unit Salvage Targeting Computer Light Armor Plating Hacking Suite Light Assault Rifle Light Assault Rifle Light Assault Rifle Grenade Launcher Mining Laser [Rating: 10] Favorites ----------- Power Light Ion Engine Engine Light Ion Engine Power Core Light Nuclear Core Propulsion Light Treads Treads Light Treads Wheel Wheel Utility Large Storage Unit Storage Large Storage Unit Weapon Medium Laser Energy Gun Medium Laser Ballistic Gun Light Assault Rifle Launcher Grenade Launcher Special Weapon Mining Laser Build | -11 -10 -10 ------- Run | Scr Mat Min Slots Evolved . | . . . Power . | . . . Propulsion . | . . . Utility . | . . . Weapon . | . . . Parts Attached 28 | 7 11 10 Power 3 | 1 1 1 Engine 2 | 1 1 . Core 1 | . . 1 Reactor . | . . . Propulsion 7 | 2 2 3 Treads 5 | 2 . 3 Leg . | . . . Wheel 2 | . 2 . Hover . | . . . Flight . | . . . Utility 5 | 2 3 . Device . | . . . Storage 5 | 2 3 . Processor . | . . . Hackware . | . . . Protection . | . . . Artifact . | . . . Weapon 13 | 2 5 6 Energy Gun 2 | 1 . 1 Energy Cannon . | . . . Ballistic Gun 7 | 1 2 4 Ballistic Cannon . | . . . Launcher 1 | . . 1 Special Weapon 3 | . 3 . Impact Weapon . | . . . Slashing Weapon . | . . . Piercing Weapon . | . . . Special Melee Weapon . | . . . Unidentified Prototypes . | . . . Parts Lost 10 | . 1 9 Power 3 | . 1 2 Propulsion 5 | . . 5 Utility . | . . . Weapon 2 | . . 2 Highest Loss Streak 9 | . 1 9 Average Slot Usage (%) 99 | . 100 98 Engine 13 | . 14 13 Treads 13 | . 16 2 Wheel 14 | . 11 25 Storage 28 | . 28 28 Energy Gun 13 | . 14 13 Ballistic Gun 8 | . 10 1 Special Weapon 5 | . 3 12 Naked Turns . | . . . Heaviest Build 38 | 16 38 38 Greatest Support 40 | 40 40 20 Greatest Overweight (x) 1 | . 1 1 Average Overweight (x) . | . . 1 Largest Inventory Capacity 16 | 8 16 16 Average Capacity 12 | 6 12 16 Most Carried 16 | 6 15 16 Average Carried 10 | 4 10 15 Final Capacity 16 | 8 16 16 Final Carried 15 | 6 15 9 Class Distribution -------------------- 100% | Mutant Dominant Class ---------------- Mutant | -10/Materials Mutant | -10/Mines Resources | -11 -10 -10 ----------- Run | Scr Mat Min Matter Collected 454 | 268 186 . Remotely . | . . . Salvage Created 836 | 212 559 65 Parts 46 | 14 32 . Haulers Intercepted 2 | . 2 . Recyclers Shooed 1 | 1 . . Parts Field Recycled . | . . . Retrieved Matter . | . . . Parts Self-Destructed . | . . . Prevented . | . . . Kills | -11 -10 -10 ------- Run | Scr Mat Min Combat Hostiles Destroyed 25 | . 10 15 Guns 13 | . 10 3 AOE 12 | . . 12 Classes Destroyed 8 | 2 5 1 Tunneler 5 | 5 . . Hauler 2 | . 2 . Recycler 2 | 1 1 . Operator 1 | . 1 . Watcher 2 | . 2 . Swarmer 3 | . 3 . Grunt 7 | . 7 . Assembled 15 | . . 15 Best Kill Streak 15 | 2 4 15 Combat Bots Only 15 | . 4 15 Max Kills in Single Turn 3 | 1 1 3 Gunslinging . | . . . Exploded 3 | . . 3 Melee . | . . . Uniques/NPCs Destroyed . | . . . Combat | -11 -10 -10 -------- Run | Scr Mat Min Damage Taken 1413 | . 383 1030 Core 257 | . 63 194 Absorbed by Shields . | . . . Core Remaining (%) 100 | 100 . . Volleys Fired 94 | 19 59 16 Largest 2 | 2 2 2 Hottest 100 | 70 100 60 Shots Fired 173 | 38 114 21 Gun 163 | 38 110 15 Cannon . | . . . Launcher 6 | . . 6 Special 4 | . 4 . Kinetic 83 | 19 55 9 Thermal 78 | 19 59 . Explosive 6 | . . 6 Electromagnetic 6 | . . 6 Robot Hit Streak 16 | 14 16 3 Robot Miss Streak 5 | 3 2 5 Penetration Max . | . . . Secondary Targets . | . . . Shots Hit Robots 114 | 25 76 13 Core Hits 72 | 10 32 30 Critical Hits . | . . . Critical Kills . | . . . Critical Parts Destroyed . | . . . Melee Attacks . | . . . Impact . | . . . Slashing . | . . . Piercing . | . . . Sneak Attacks . | . . . Combat Hostiles . | . . . Follow-up Attacks . | . . . Damage Inflicted 1855 | 263 831 761 Guns 1165 | 263 831 71 Cannons . | . . . Explosions 690 | . . 690 Melee . | . . . Ramming . | . . . Kinetic 379 | 100 241 38 Thermal 753 | 163 590 . Explosive 690 | . . 690 Electromagnetic 33 | . . 33 Impact . | . . . Slashing . | . . . Piercing . | . . . Highest Corruption 5 | . . 5 Average Corruption 5 | . . 5 Corruption Purged . | . . . Effects 3 | . . 3 Matter Fused 1 | . . 1 Energy Discharges 1 | . . 1 Targeting Errors 1 | . . 1 Overload Shots . | . . . Overflow Damage 16 | . . 16 Projectiles . | . . . Explosions 16 | . . 16 Melee . | . . . Knockbacks . | . . . Impact . | . . . Kinetic . | . . . Secondary . | . . . Self-Inflicted Damage . | . . . Shots . | . . . Rammed . | . . . Targets Rammed . | . . . Kicked . | . . . Crushed . | . . . Highest Temperature 292 | 90 292 35 Average Temperature 55 | 39 64 13 Received Heat Transfer 205 | . 165 40 Siege Activations . | . . . Robots Corrupted . | . . . Combat Hostiles . | . . . Parts Fried . | . . . Impact Corruptions . | . . . Robots Melted . | . . . Combat Hostiles . | . . . Parts Melted 1 | . 1 . Heat Transferred 2220 | 481 1739 . Parts Sabotaged . | . . . Parts Stolen . | . . . Parts Stripped . | . . . Power Chain Reactions . | . . . Missiles Intercepted . | . . . Alert | -11 -10 -10 ------- Run | Scr Mat Min Peak Influence 210 | 30 210 12 Initial 19 | . 19 12 Average 70 | 14 97 10 Maximum Alert Level 1 | . 1 . Low Security (%) 94 | 100 91 100 Level 1 5 | . 8 . Level 2 . | . . . Level 3 . | . . . Level 4 . | . . . Level 5 . | . . . High Security . | . . . Max Security . | . . . Squads Dispatched 3 | . 3 . Investigation 1 | . 1 . Extermination . | . . . Reinforcement 2 | . 2 . Assault . | . . . Garrison . | . . . Intercept . | . . . Construction Impeded . | . . . Haulers Reinforced . | . . . Stealth | -11 -10 -10 --------- Run | Scr Mat Min Distress Signals 2 | . 2 . Communications Jammed . | . . . Distress Signals . | . . . Times Spotted 43 | . 27 16 Peak Tracking Total 10 | . 5 10 Tactical Retreats 3 | . 3 . Traps | -11 -10 -10 ------- Run | Scr Mat Min Traps Triggered . | . . . Indirectly . | . . . Trap Hack Attempts . | . . . Triggered . | . . . Disarmed . | . . . Reprogrammed . | . . . Reused . | . . . Traps Extracted . | . . . Installed . | . . . Triggered . | . . . Machines | -11 -10 -10 ---------- Run | Scr Mat Min Machines Disabled . | . . . Max in Single Turn . | . . . Machines Sabotaged . | . . . Garrisons Compromised . | . . . Overloaded Fab Kills . | . . . Fab Network Shutdowns . | . . . Hacking | -11 -10 -10 --------- Run | Scr Mat Min Machines Accessed 6 | . 6 . Terminals 5 | . 5 . Fabricators . | . . . Repair Stations . | . . . Recycling Units 1 | . 1 . Scanalyzers . | . . . Garrison Access . | . . . Total Hacks 20 | . 20 . Successful 15 | . 15 . Failed 5 | . 5 . Catastrophic . | . . . Database Lockouts . | . . . Manual 14 | . 14 . Terminals 19 | . 19 . Fabricators . | . . . Repair Stations . | . . . Recycling Units 1 | . 1 . Scanalyzers . | . . . Garrison Access . | . . . Terminal Hacks 6 | . 6 . Prototype ID Bank 3 | . 3 . Terminal Index 1 | . 1 . Locate Traps 1 | . 1 . Zone Layout 1 | . 1 . Fabricator Hacks . | . . . Repair Station Hacks . | . . . Recycling Unit Hacks . | . . . Scanalyzer . | . . . Garrison Access Hacks . | . . . Unauthorized Hacks 9 | . 9 . Terminals 8 | . 8 . Track 3 | . 3 . Assimilate 3 | . 3 . Botnet 1 | . 1 . Operators 1 | . 1 . Fabricators . | . . . Repair Stations . | . . . Recycling Units 1 | . 1 . Tunnel 1 | . 1 . Scanalyzers . | . . . Garrison Access . | . . . Data Cores Recovered . | . . . Used . | . . . Hacking Detections 4 | . 4 . Full Trace Events . | . . . Feedback Events . | . . . Feedback Blocked . | . . . Robot Schematics Acquired . | . . . Robots Built . | . . . Matter . | . . . Time . | . . . Total Robot Build Rating . | . . . Part Schematics Acquired . | . . . Parts Built . | . . . Matter . | . . . Time . | . . . Total Part Build Rating . | . . . Parts Repaired . | . . . Time . | . . . Parts Recycled . | . . . Recycled Matter . | . . . Retrieved Matter . | . . . Retrieved Components . | . . . Parts Scanalyzed . | . . . Part Schematics Acquired . | . . . Parts Damaged . | . . . Bothacking | -11 -10 -10 ------------ Run | Scr Mat Min Used RIF Installer . | . . . Robots Hacked . | . . . Non-combat . | . . . Combat . | . . . Robot Hacks Applied . | . . . Relay Couplers Released . | . . . Robots Rewired . | . . . Allies Hacked . | . . . Hacks Repelled . | . . . Allies | -11 -10 -10 -------- Run | Scr Mat Min Total Allies 1 | . 1 . Largest Group 1 | . 1 1 Highest-Rated Group 10 | . 10 10 Highest-Rated Ally 10 | . 10 10 Total Orders . | . . . Ally Attacks . | . . . Total Damage . | . . . Kills . | . . . Allies Corrupted . | . . . Allies Melted . | . . . Intel | -11 -10 -10 ------- Run | Scr Mat Min Robot Analysis Total . | . . . Derelict Logs Recovered . | . . . Drone Launches . | . . . Drone Recoveries . | . . . Exploration | -11 -10 -10 ------------- Run | Scr Mat Min Turns Passed 1846 | 252 1247 347 Spaces Moved 1211 | 124 756 331 Core 16 | 16 . . Treads 359 | 108 250 1 Legs . | . . . Wheels 836 | . 506 330 Hover . | . . . Flight . | . . . Fastest Speed 50 | 50 90 90 Average Speed 110 | 145 113 90 Slowest Speed 180 | 160 160 180 Overloaded Moves . | . . . Propulsion Burnouts . | . . . Robots Hopped . | . . . Cave-ins Triggered . | . . . Exploration Rate (%) 57 | 7 93 73 Regions Visited 2 Branch Regions 1 Pre-discovered Areas 2 | . 1 1 Known Exits Taken . | . . . Unknown Exits Taken 2 | 1 1 . Scrap Searched 3 | . . 3 Spaces Dug 3 | . 3 . Terrain Destroyed 44 | . 4 40 Melee . | . . . Projectile 4 | . 4 . AOE 40 | . . 40 Terrain Rammed . | . . . Walls Destroyed . | . . . Machines Disabled . | . . . Actions | -11 -10 -10 --------- Run | Scr Mat Min Total 1554 | 159 1033 362 Wait 194 | 1 193 . Move 1209 | 123 755 331 Hop . | . . . Pick Up 24 | 9 12 3 Fast Attach 4 | 4 . . Attach 11 | 3 1 7 Detach . | . . . Swap 13 | . 10 3 Drop 5 | . 3 2 Fire 94 | 19 59 16 Melee . | . . . Ram . | . . . Kick . | . . . Crush . | . . . Escape Stasis . | . . . Rewire . | . . . Trap . | . . . Miscellaneous . | . . . Route ------- -11/Scrapyard -10/Materials (discovered 4 exits: [*Mat x3] / [*Min]) -10/Mines History --------- Turn | Location | Event 14 | -11/Scrapyard | Discovered new exit (range 15) 253 | -11/Scrapyard | Entered Materials 311 | -10/Materials | Build established: Mutant 1077 | -10/Materials | Discovered new exit (range 16) 1152 | -10/Materials | Discovered new exit (range 12) 1317 | -10/Materials | Discovered new exit (range 16) 1415 | -10/Materials | Discovered new exit (range 12) 1500 | -10/Materials | Entered Mines 1500 | -10/Mines | Accompanied by 1 ally 1583 | -10/Mines | Deemed a non-threat by the Exiles lab entrance 1660 | -10/Mines | Learned location of Storage (-9) 1768 | -10/Mines | Assembled infested the area 1773 | -10/Mines | Assisted by a Guerilla fighting off Assembled 1824 | -10/Mines | Core integrity fell below 50% 1841 | -10/Mines | Core integrity fell below 20% 1847 | -10/Mines | Destroyed by as-11478 with Assembled Rifle Last Messages --------------- 01823_ The unstable cave ceiling collapses. 01824_ System corrupted: Energy discharge (-33). 01825_ Lgt. Assault Rifle severed. 01825_ System corrupted: EM Pulse Gun targeting data glitched. 01825_ as-34212 destroyed. 01829_ as-02811 destroyed. 01830_ U-05 Engineer lays Concrete. 01831_ The unstable cave ceiling collapses. 01832_ Lgt. Nuclear Core destroyed. 01835_ Lgt. Treads destroyed. 01835_ EM Pulse Gun destroyed. 01836_ The unstable cave ceiling collapses. 01839_ System corrupted: Matter fused (-10). 01840_ as-77025 sneak attacks. 01840_ U-05 Engineer destroyed. 01844_ The unstable cave ceiling collapses. 01844_ 2 Matter crushed. 01845_ Lgt. Treads destroyed. 01846_ as-77025 destroyed. [Achievement: Exterminator] Map ----- +----------------------------------------------------+ | ?????????????????????????????????????????????????? | | ?????????????????????????????????????????????????? | | ?????????????????????????????????????????????????? | | ?????????????????????????????????????????????????? | | ?????????????????????????????????????????????????? | | ?????????????????????????????????????????????????? | | ?????????????????????????????????????????????????? | | ?????????????????????????????????????????????????? | | ???????????????? ????????????????????????????????? | | ??????????????? ???????????????????????????????? | | ??????????????? ???????????????????????????????? | | ??????????????? #???? ?????????????????????????? | | ??????????????? #??? ????????????????????????? | | ??????????????? ##?# ????????????????????????? | | ??????????????? ## ?????????????????????????? | | ??????????????? ??????????????????????????? | | ?????????????## ???????????????????????????? | | ????????????## ????????????????????????????? | | ???????????## #?????????????????????????????? | | #????????### % #????????????????######### #??? | | ##??????## #????????????????# #??? | | ##???### ???????????????#%#########??? | | #??## ## ??????????????#!#??????????? | | #??# # # ##############%#??????????? | | #??# !*= a %[!% =r!#??????????? | | #??# !%! a *|%@ o #??????????? | | #??## ## a =###############??????????? | | ##???## ## # ##?????????????????????????? | | ##?????# ### ##???????????????????????????? | | #??????# #?#### ??????????????????????????????? | | ##?????## ######???####????????????????????????? | | ##????## ## ##?## #########????????????????? | | ###### ### ##???????????????? | | #???????????????? | | #???????????????? | | # ## ### #???????????????? | | ## ####### #### ##???????????????? | | ?####?????## #### ##????????????????? | | ???????????# #?## #?????????????????? | | ??????????## #??# # #?#####???????????? | | ??????##### ##??## ## ### #???????????? | | ?????## ##????##### ## ##??????????? | | ?????# ##????????# ##?????????? | | #????# #????????###### #?????????? | | ####### #?????????????### #?????????? | | ######## #???????????????## ##????????? | | #??????## ##????????????????# ##???????? | | ### #??????## ##????????????????# #???????? | | ## #?????## ##???????????????# #???????? | | ## ####### ###????????????## ##???????? | +----------------------------------------------------+ Best States ------------- Heat Dissipation 25 Energy Generation 14 Energy Capacity 250 Matter Stores 300 Matter Capacity 300 Sight Range 16 Terrain Scan Density 10 Evasion (%) 50 Recoil Reduction 2 Item Schematics ----------------- None Robot Schematics ------------------ None Fabricated ------------ Nothing Alien Tech Used ----------------- None Achievements -------------- Exterminator Challenges ------------ None Game ------ Seed CompositeThiefShockpuncher Manual? 0 Play Time 00:17:41 Cumulative 251.3 hours Start 2020.12.28 @ 00:25:13 End 2020.12.28 @ 00:42:19 Sessions 1 Manual Loads 0 Difficulty Rogue Special Mode None Game No. 91 Rogue 87 Adventurer 4 Explorer 0 Win Type - Total 3 Types 2/0/1/0/0/0/0/0/0 Lore% 65 Gallery% 75 Achievement% 60 Wizard Run 0 Options --------- ASCII 1 Keyboard 0 Movement Arrows Keybinds 0 Fullscreen 1 Font 18/Terminus Map View 76x50 Tactical HUD 1 Map Filters NONE Filters NONE Steam 1 RUN: 8a1606da-e704-4542-9aea-15a008f50e96